[Event "46th GRE-chT Premier 2018"]
[Site "Rio Achaia"]
[Date "2018.07.12"]
[Round "4"]
[White "Papadopoulou, Marilena"]
[Black "Karavitaki, Evaggelia"]
[Result "1/2-1/2"]
[ECO "B43"]
[WhiteElo "1275"]
[BlackElo "1723"]
[Annotator "NA RC"]
[PlyCount "199"]
[EventDate "2018.07.10"]
[EventType "team-tourn"]
[EventCountry "GRE"]
[SourceTitle "playchess.com"]
[Source "ChessBase"]
[SourceQuality "1"]
[TimeControl "40/5400+30:1800+30"]

1. e4 {[%emt 0:00:00]} c5 {[%emt 0:00:00]} 2. Nf3 {[%emt 0:00:00]} e6 {[%emt 0:00:00]} 3. d4 {[%emt 0:00:00]} cxd4 {[%emt 0:00:00]} 4. Nxd4 {[%emt 0:00:00]} a6 {[%emt 0:00:04]} 5. Nc3 {[%emt 0:00:39]} Qc7 {[%emt 0:00:17]} 6. Bd3 {[%emt 0:01:21]} Nf6 {[%emt 0:00:26]} 7. O-O {[%emt 0:01:29]} d6 {[%emt 0:02:13]} 8. Be3 {[%emt 0:07:47]} Be7 {[%emt 0:01:01]} 9. f4 {[%emt 0:01:04]} O-O {[%emt 0:01:55]} 10. Qf3 {[%emt 0:03:05]} Nc6 {[%emt 0:04:39]} 11. Nb3 {[%emt 0:01:14]} Rb8 {[%emt 0:11:38]} 12. Qh3 {[%emt 0:03:53]} g6 {[%emt 0:22:20]} 13. Rf3 {[%emt 0:07:23]} b5 {[%emt 0:02:06]} 14. a3 {[%emt 0:03:16]} b4 {[%emt 0:01:50]} 15. Ne2 {[%emt 0:04:36]} bxa3 {[%emt 0:02:26]} 16. Rxa3 {[%emt 0:02:49]} d5 {[%emt 0:01:50]} 17. e5 {[%emt 0:03:25]} Ne4 {[%emt 0:14:36]} 18. Ra1 {[%emt 0:03:21]} Nb4 {[%emt 0:00:55]} 19. Rc1 {[%emt 0:07:27]} Nc5 {[%emt 0:11:12]} 20. Nxc5 {[%emt 0:04:08]} Bxc5 {[%emt 0:00:06]} 21. Bxc5 {[%emt 0:04:25]} Qxc5+ {[%emt 0:00:03]} 22. Kh1 {[%emt 0:01:32]} Bd7 {[%emt 0:03:18]} 23. Qh4 {[%emt 0:05:32]} f5 {[%emt 0:07:52]} 24. exf6 {[%emt 0:02:20]} Nxd3 {[%emt 0:00:15]} 25. cxd3 {[%emt 0:02:02]} Qa7 {[%emt 0:00:29]} 26. Rc2 {[%emt 0:03:33]} Ba4 {[%emt 0:01:25]} 27. Rd2 {[%emt 0:00:48]} Qf7 {[%emt 0:01:02]} 28. Rh3 {[%emt 0:02:39]} Rb7 {[%emt 0:00:19]} 29. f5 {[%emt 0:00:20]} Be8 {[%emt 0:03:32]} 30. fxg6 {[%emt 0:00:18]} Qxf6 {[%emt 0:00:18]} 31. gxh7+ {[%emt 0:01:47]} Kh8 {[%emt 0:00:07]} 32. Qxf6+ {[%emt 0:01:15]} Rxf6 {[%emt 0:00:02]} 33. Ng3 {[%emt 0:03:09]} Rxh7 {[%emt 0:02:29]} 34. Rxh7+ {[%emt 0:00:23]} Kxh7 {[%emt 0:00:02]} 35. Re2 {[%emt 0:01:10]} Bb5 {[%emt 0:01:31]} 36. Re3 {[%emt 0:01:05]} Bd7 {[%emt 0:01:19]} 37. Kg1 {[%emt 0:00:46]} Rf4 {[%emt 0:01:59]} 38. Rf3 {[%emt 0:01:29]} Rxf3 {[%emt 0:00:23]} 39. gxf3 {[%emt 0:00:12]} e5 {[%emt 0:01:02]} 40. Kf2 {[%emt 0:00:00]} d4 {[%emt 0:00:00]} 41. Ne2 {[%emt 0:02:45]} Kg6 {[%emt 0:17:06]} 42. f4 {[%emt 0:01:18]} Kf5 {[%emt 0:00:05]} 43. fxe5 {[%emt 0:00:18]} Kxe5 {[%emt 0:00:02]} 44. Kf3 {[%emt 0:02:05]} Bb5 {[%emt 0:01:20]} 45. Nc1 {[%emt 0:00:47]} Kf5 {[%emt 0:00:38]} 46. h4 {[%emt 0:02:08]} Bc6+ {[%emt 0:02:04]} 47. Kg3 {[%emt 0:00:46]} Bb5 {[%emt 0:00:26]} 48. h5 {[%emt 0:01:26]} Kg5 {[%emt 0:00:40]} 49. h6 {[%emt 0:00:22]} Kxh6 {[%emt 0:00:19]} 50. Kf4 {[%emt 0:00:14]} Kg6 {[%emt 0:00:28]} 51. Ke5 {[%emt 0:00:12]} Kf7 {[%emt 0:00:24]} 52. Kxd4 {[%emt 0:00:30]} Ke6 {[%emt 0:00:12]} 53. Kc5 {[%emt 0:00:30]} Kd7 {[%emt 0:00:35]} 54. d4 {[%emt 0:01:07]} Kc7 {[%emt 0:00:28]} 55. Na2 {[%emt 0:01:30]} Bf1 {[%emt 0:01:06]} 56. Nb4 {[%emt 0:02:41]} Be2 {[%emt 0:00:52]} 57. d5 {[%emt 0:01:40]} Kd7 {[%emt 0:02:32]} 58. Nc6 {[%emt 0:02:35]} Bb5 {[%emt 0:08:20]} 59. b4 {[%emt 0:02:10]} Be2 {[%emt 0:01:20]} 60. Ne5+ {[%emt 0:00:49]} Kd8 {[%emt 0:00:45]} 61. Kc6 {[%emt 0:01:27]} Bb5+ {[%emt 0:00:29]} 62. Kd6 {[%emt 0:00:23]} Ba4 {[%emt 0:00:34]} 63. Nf7+ {[%emt 0:00:49]} Ke8 {[%emt 0:00:11]} 64. Ke6 {[%emt 0:01:10]} Bd7+ {[%emt 0:00:15]} 65. Kf6 {[%emt 0:00:58]} Ba4 {[%emt 0:00:15]} 66. Ke6 {[%emt 0:03:57]} Bd7+ {[%emt 0:00:05]} 67. Kd6 {[%emt 0:00:33]} Ba4 {[%emt 0:00:26]} 68. Ne5 {[%emt 0:00:29]} Kd8 {[%emt 0:00:41]} 69. Nc6+ {[%emt 0:01:13]} Kc8 {[%emt 0:00:14]} 70. Ke6 {[%emt 0:01:10]} Kc7 {[%emt 0:01:02]} 71. Ne5 {[%emt 0:00:42]} Kd8 {[%emt 0:00:33]} 72. Kd6 {[%emt 0:01:46]} Bb3 {[%emt 0:01:00]} 73. Kc6 {[%emt 0:00:48]} Ba4+ {[%emt 0:00:40]} 74. Kb6 {[%emt 0:00:25]} Bb5 {[%emt 0:00:14]} 75. Nc6+ {[%emt 0:00:32]} Kd7 {[%emt 0:00:14]} 76. Nb8+ {[%emt 0:01:01]} Kd6 {[%emt 0:00:21]} 77. Nxa6 {[%emt 0:00:10]} Bf1 {[%emt 0:00:24]} 78. Nc7 {[%emt 0:00:28]} Bd3 {[%emt 0:01:11]} 79. Kb7 {[%emt 0:00:57]} Bf1 {[%emt 0:00:20]} 80. Kc8 {[%emt 0:03:24]} Be2 {[%emt 0:00:33]} 81. Kb7 {[%emt 0:04:15]} Bf1 {[%emt 0:00:11]} 82. Kb6 {[%emt 0:01:11]} Be2 {[%emt 0:00:50]} 83. Ne6 {[%emt 0:06:46]} Kxd5 {[%emt 0:00:30]} 84. Nf4+ {[%emt 0:00:24]} Kc4 {[%emt 0:00:06]} 85. Ka5 {[%emt 0:00:21]} Bf3 {[%emt 0:00:50]} 86. b5 {[%emt 0:00:42]} Bh1 {[%emt 0:00:59]} 87. b6 {[%emt 0:00:56]} Kc5 {[%emt 0:01:04]} 88. Ka6 {[%emt 0:01:07]} Kd6 {[%emt 0:00:59]} 89. Ka7 {[%emt 0:01:35]} Kc5 {[%emt 0:00:20]} 90. Ne6+ {[%emt 0:00:55]} Kd6 {[%emt 0:00:31]} 91. Nd4 {[%emt 0:00:34]} Kc5 {[%emt 0:00:25]} 92. Ne2 {[%emt 0:00:45]} Kd6 {[%emt 0:00:31]} 93. Ng3 {[%emt 0:00:24]} Bg2 {[%emt 0:00:14]} 94. Nf5+ {[%emt 0:00:22]} Kc5 {[%emt 0:00:16]} 95. Ne3 {[%emt 0:00:53]} Bh1 {[%emt 0:00:08]} 96. Ng4 {[%emt 0:00:44]} Kd6 {[%emt 0:00:26]} 97. Ka6 {[%emt 0:00:56]} Kc5 {[%emt 0:00:17]} 98. Ka5 {[%emt 0:00:54]} Kc6 {[%emt 0:02:11]} 99. Nf2 {[%emt 0:00:41]} Bg2 {[%emt 0:00:10]} 100. Nd3 {[%emt 0:00:19]} 1/2-1/2

[Event "46th GRE-chT Premier 2018"]
[Site "Rio Achaia"]
[Date "2018.07.12"]
[Round "4"]
[White "Paparizou, Eleni"]
[Black "Bania, Eleni"]
[Result "0-1"]
[ECO "C45"]
[WhiteElo "1274"]
[BlackElo "1349"]
[Annotator "NA"]
[PlyCount "44"]
[EventDate "2018.07.10"]
[EventType "team-tourn"]
[EventCountry "GRE"]
[SourceTitle "playchess.com"]
[Source "ChessBase"]
[SourceQuality "1"]
[TimeControl "40/5400+30:1800+30"]

1. e4 {[%emt 0:00:00]} e5 {[%emt 0:00:00]} 2. Nf3 {[%emt 0:00:00]} Nc6 {[%emt 0:00:00]} 3. d4 {[%emt 0:00:00]} exd4 {[%emt 0:00:00]} 4. Nxd4 {[%emt 0:00:00]} Bc5 {[%emt 0:00:00]} 5. Be3 {[%emt 0:01:14]} Qf6 {[%emt 0:01:04]} 6. c3 {[%emt 0:04:47]} Nge7 {[%emt 0:00:27]} 7. Bc4 {[%emt 0:09:04]} d6 {[%emt 0:00:32]} 8. O-O {[%emt 0:13:27]} O-O {[%emt 0:00:27]} 9. f4 {[%emt 0:04:14]} Be6 {[%emt 0:06:11]} 10. Qd3 {[%emt 0:04:16]} d5 {[%emt 0:06:23]} 11. Bxd5 {[%emt 0:12:51]} Bxd5 {[%emt 0:06:20]} 12. exd5 {[%emt 0:01:42]} Nxd5 {[%emt 0:00:12]} 13. Nd2 {[%emt 0:10:01]} Nxe3 {[%emt 0:01:40]} 14. Qxe3 {[%emt 0:00:11]} Nxd4 {[%emt 0:00:05]} 15. Kh1 {[%emt 0:10:27]} Nb3 {[%emt 0:00:27]} 16. Ne4 {[%emt 0:04:27]} Qe7 {[%emt 0:02:04]} 17. Qf3 {[%emt 0:04:22]} Nxa1 {[%emt 0:00:37]} 18. Rxa1 {[%emt 0:00:55]} Rfe8 {[%emt 0:00:08]} 19. Re1 {[%emt 0:01:24]} f5 {[%emt 0:00:17]} 20. Nf6+ {[%emt 0:02:09]} Qxf6 {[%emt 0:00:08]} 21. Rxe8+ {[%emt 0:00:50]} Rxe8 {[%emt 0:00:35]} 22. h3 {[%emt 0:01:22]} Qe6 {[%emt 0:00:00]} 0-1

[Event "46th GRE-chT Premier 2018"]
[Site "Rio Achaia"]
[Date "2018.07.12"]
[Round "4"]
[White "Violakis, Anastasios"]
[Black "Makridis, Dimitrios"]
[Result "1-0"]
[ECO "D35"]
[WhiteElo "1255"]
[BlackElo "1565"]
[Annotator "NA"]
[PlyCount "119"]
[EventDate "2018.07.10"]
[EventType "team-tourn"]
[EventCountry "GRE"]
[SourceTitle "playchess.com"]
[Source "ChessBase"]
[SourceQuality "1"]
[TimeControl "40/5400+30:1800+30"]

1. d4 {[%emt 0:00:00]} d5 {[%emt 0:00:00]} 2. c4 {[%emt 0:00:00]} e6 {[%emt 0:00:00]} 3. Nc3 {[%emt 0:00:05]} Nf6 {[%emt 0:00:00]} 4. cxd5 {[%emt 0:00:14]} exd5 {[%emt 0:00:00]} 5. Bg5 {[%emt 0:00:06]} Nbd7 {[%emt 0:00:07]} 6. Nf3 {[%emt 0:00:12]} c6 {[%emt 0:00:04]} 7. e3 {[%emt 0:00:04]} Bd6 {[%emt 0:00:33]} 8. Bd3 {[%emt 0:00:08]} O-O {[%emt 0:00:13]} 9. Qc2 {[%emt 0:00:41]} h6 {[%emt 0:00:05]} 10. Bh4 {[%emt 0:00:27]} Re8 {[%emt 0:02:35]} 11. O-O-O {[%emt 0:00:53]} a5 {[%emt 0:01:31]} 12. g4 {[%emt 0:00:33]} g5 {[%emt 0:01:02]} 13. Bg3 {[%emt 0:00:41]} Bxg3 {[%emt 0:02:43]} 14. hxg3 {[%emt 0:00:10]} Nxg4 {[%emt 0:02:34]} 15. e4 {[%emt 0:23:59]} dxe4 {[%emt 0:02:56]} 16. Nxe4 {[%emt 0:00:27]} Ndf6 {[%emt 0:02:51]} 17. Rde1 {[%emt 0:05:41]} Be6 {[%emt 0:07:10]} 18. Ne5 {[%emt 0:16:07]} Nxe4 {[%emt 0:17:57]} 19. Bxe4 {[%emt 0:00:30]} Qxd4 {[%emt 0:07:45]} 20. Nxg4 {[%emt 0:03:14]} Bxg4 {[%emt 0:00:34]} 21. f3 {[%emt 0:04:48]} Be6 {[%emt 0:09:24]} 22. Rxh6 {[%emt 0:02:59]} Bf5 23. Rhh1 Bxe4 {[%emt 0:07:42]} 24. fxe4 {[%emt 0:02:37]} Re5 {[%emt 0:00:34]} 25. Qh2 {[%emt 0:01:14]} Rc5+ {[%emt 0:02:02]} 26. Kb1 {[%emt 0:00:31]} Rd8 {[%emt 0:01:32]} 27. e5 {[%emt 0:01:47]} Qd3+ {[%emt 0:22:39]} 28. Ka1 {[%emt 0:00:12]} Kf8 {[%emt 0:02:38]} 29. Qh8+ {[%emt 0:00:16]} Ke7 {[%emt 0:00:04]} 30. Qf6+ {[%emt 0:00:19]} Kd7 {[%emt 0:00:16]} 31. Rd1 {[%emt 0:00:07]} Kc7 {[%emt 0:00:24]} 32. Rxd3 Rxd3 33. Qxf7+ {[%emt 0:01:03]} Rd7 {[%emt 0:00:03]} 34. Qf6 {[%emt 0:00:32]} Rcd5 {[%emt 0:00:52]} 35. a3 {[%emt 0:00:27]} b5 {[%emt 0:00:59]} 36. e6 {[%emt 0:01:42]} R5d6 {[%emt 0:00:27]} 37. Rf1 {[%emt 0:02:39]} Rh7 {[%emt 0:00:31]} 38. Qf7+ {[%emt 0:00:33]} Rxf7 {[%emt 0:00:03]} 39. exf7 {[%emt 0:00:04]} Rd8 {[%emt 0:00:11]} 40. f8=Q {[%emt 0:00:00]} Rxf8 {[%emt 0:00:00]} 41. Rxf8 {[%emt 0:00:14]} Kd6 {[%emt 0:00:06]} 42. Rg8 {[%emt 0:00:10]} c5 {[%emt 0:00:24]} 43. Rxg5 {[%emt 0:00:06]} b4 {[%emt 0:00:03]} 44. axb4 {[%emt 0:00:18]} axb4 {[%emt 0:00:03]} 45. Kb1 {[%emt 0:00:16]} c4 {[%emt 0:00:02]} 46. Kc2 {[%emt 0:00:14]} c3 {[%emt 0:00:03]} 47. bxc3 {[%emt 0:00:06]} bxc3 {[%emt 0:00:02]} 48. Kxc3 {[%emt 0:00:07]} Ke6 {[%emt 0:00:02]} 49. Kd4 {[%emt 0:00:07]} Kf6 {[%emt 0:00:03]} 50. Re5 {[%emt 0:00:14]} Kg6 {[%emt 0:00:04]} 51. Kd5 {[%emt 0:00:05]} Kf6 {[%emt 0:00:04]} 52. Kd6 {[%emt 0:00:07]} Kg6 {[%emt 0:00:02]} 53. Ke6 {[%emt 0:00:05]} Kg7 {[%emt 0:00:02]} 54. g4 {[%emt 0:00:08]} Kf8 {[%emt 0:00:04]} 55. Kf6 {[%emt 0:00:04]} Kg8 {[%emt 0:00:03]} 56. Re7 {[%emt 0:00:08]} Kf8 {[%emt 0:00:02]} 57. g5 {[%emt 0:00:14]} Kg8 {[%emt 0:00:02]} 58. g6 {[%emt 0:00:15]} Kf8 {[%emt 0:00:04]} 59. g7+ {[%emt 0:00:04]} Kg8 {[%emt 0:00:04]} 60. Re8+ {[%emt 0:00:05]} 1-0

[Event "46th GRE-chT Premier 2018"]
[Site "Rio Achaia"]
[Date "2018.07.12"]
[Round "4"]
[White "Batsi, Varvara"]
[Black "Strati, Betty - Anna"]
[Result "0-1"]
[ECO "D00"]
[WhiteElo "1241"]
[BlackElo "1631"]
[Annotator "NA"]
[PlyCount "168"]
[EventDate "2018.07.10"]
[EventType "team-tourn"]
[EventCountry "GRE"]
[SourceTitle "playchess.com"]
[Source "ChessBase"]
[SourceQuality "1"]
[TimeControl "40/5400+30:1800+30"]

1. d4 {[%emt 0:00:00]} d5 {[%emt 0:00:00]} 2. Bf4 {[%emt 0:00:00]} c5 {[%emt 0:00:08]} 3. e3 {[%emt 0:00:12]} Nc6 {[%emt 0:01:07]} 4. c3 {[%emt 0:01:50]} Nf6 {[%emt 0:03:51]} 5. Nd2 {[%emt 0:00:48]} e6 {[%emt 0:08:07]} 6. Bd3 {[%emt 0:02:55]} Be7 {[%emt 0:02:26]} 7. Ngf3 {[%emt 0:01:51]} O-O {[%emt 0:01:14]} 8. h3 {[%emt 0:01:54]} b6 {[%emt 0:05:32]} 9. O-O {[%emt 0:00:36]} Bb7 {[%emt 0:00:34]} 10. Ne5 {[%emt 0:01:18]} Rc8 {[%emt 0:04:46]} 11. Qe2 {[%emt 0:05:50]} Nb8 {[%emt 0:10:12]} 12. Bh2 {[%emt 0:10:54]} Nbd7 {[%emt 0:02:16]} 13. f4 {[%emt 0:02:03]} Ne4 {[%emt 0:06:17]} 14. Nxe4 {[%emt 0:09:11]} dxe4 {[%emt 0:00:27]} 15. Ba6 {[%emt 0:00:16]} Bxa6 {[%emt 0:14:34]} 16. Qxa6 {[%emt 0:00:14]} Nxe5 {[%emt 0:01:18]} 17. fxe5 {[%emt 0:00:20]} Qc7 {[%emt 0:11:38]} 18. Qe2 {[%emt 0:03:47]} Qc6 {[%emt 0:03:54]} 19. Qg4 {[%emt 0:10:48]} Qb5 {[%emt 0:05:05]} 20. Rf2 {[%emt 0:11:06]} Qc6 {[%emt 0:04:07]} 21. Bf4 {[%emt 0:00:59]} Kh8 {[%emt 0:00:20]} 22. Raf1 {[%emt 0:01:38]} f5 {[%emt 0:02:28]} 23. exf6 {[%emt 0:03:42]} gxf6 {[%emt 0:00:32]} 24. Bh6 {[%emt 0:05:38]} Rg8 {[%emt 0:03:41]} 25. Qh5 {[%emt 0:03:44]} Qe8 {[%emt 0:01:28]} 26. Qxe8 {[%emt 0:02:39]} Rcxe8 {[%emt 0:00:27]} 27. Bf4 {[%emt 0:00:40]} Rg6 {[%emt 0:00:44]} 28. Kh1 {[%emt 0:01:38]} f5 {[%emt 0:01:08]} 29. Rd2 {[%emt 0:01:23]} Rd8 {[%emt 0:01:43]} 30. Rfd1 {[%emt 0:00:48]} cxd4 {[%emt 0:00:57]} 31. Rxd4 {[%emt 0:00:51]} Rxd4 {[%emt 0:00:37]} 32. Rxd4 {[%emt 0:00:06]} Bf6 {[%emt 0:01:11]} 33. Rd7 {[%emt 0:01:30]} e5 {[%emt 0:00:33]} 34. Bh2 {[%emt 0:00:07]} Rg7 {[%emt 0:00:23]} 35. Rxg7 {[%emt 0:01:23]} Kxg7 {[%emt 0:00:07]} 36. Kg1 {[%emt 0:00:44]} Kf7 {[%emt 0:00:19]} 37. Kf2 {[%emt 0:01:03]} Ke6 {[%emt 0:00:38]} 38. Ke2 {[%emt 0:01:04]} Bg5 {[%emt 0:01:05]} 39. g3 {[%emt 0:00:43]} Kd5 {[%emt 0:00:34]} 40. b3 {[%emt 0:00:00]} b5 {[%emt 0:00:00]} 41. Kd2 {[%emt 0:01:46]} a5 {[%emt 0:06:45]} 42. Ke2 {[%emt 0:01:10]} h5 {[%emt 0:03:29]} 43. Kd2 {[%emt 0:00:31]} h4 {[%emt 0:06:44]} 44. Ke2 {[%emt 0:01:14]} hxg3 {[%emt 0:00:41]} 45. Bxg3 {[%emt 0:00:05]} f4 {[%emt 0:00:34]} 46. Bf2 {[%emt 0:00:19]} Bf6 {[%emt 0:04:54]} 47. Kd2 {[%emt 0:02:05]} Bg5 {[%emt 0:01:31]} 48. Ke2 {[%emt 0:01:39]} Bf6 {[%emt 0:01:04]} 49. Kd2 {[%emt 0:13:05]} Bg5 {[%emt 0:02:33]} 50. h4 {[%emt 0:05:43]} Bh6 {[%emt 0:01:22]} 51. Ke2 {[%emt 0:00:44]} Ke6 {[%emt 0:00:56]} 52. c4 {[%emt 0:03:37]} bxc4 {[%emt 0:01:52]} 53. bxc4 {[%emt 0:00:44]} Bf8 {[%emt 0:01:16]} 54. a4 {[%emt 0:00:53]} Bd6 {[%emt 0:01:59]} 55. Bg1 {[%emt 0:03:15]} Bc7 {[%emt 0:01:43]} 56. Bh2 {[%emt 0:00:48]} Kf5 {[%emt 0:00:44]} 57. Bg1 {[%emt 0:01:17]} Kg4 {[%emt 0:00:57]} 58. Bf2 {[%emt 0:00:12]} Kf5 {[%emt 0:00:37]} 59. Kd2 {[%emt 0:02:41]} Bb6 {[%emt 0:00:54]} 60. h5 {[%emt 0:00:49]} Bc7 {[%emt 0:00:31]} 61. Kc3 {[%emt 0:01:28]} Bb6 {[%emt 0:01:26]} 62. Kd2 {[%emt 0:01:25]} Bc5 {[%emt 0:00:24]} 63. Ke2 {[%emt 0:00:51]} f3+ {[%emt 0:00:40]} 64. Kf1 {[%emt 0:00:27]} Kg5 {[%emt 0:00:18]} 65. Bg3 {[%emt 0:01:00]} Bd6 {[%emt 0:00:39]} 66. Kf2 {[%emt 0:00:36]} Kxh5 {[%emt 0:00:16]} 67. c5 {[%emt 0:00:29]} Bc7 {[%emt 0:00:47]} 68. c6 {[%emt 0:01:14]} Kg6 {[%emt 0:00:22]} 69. Ke1 {[%emt 0:00:17]} Kf7 {[%emt 0:00:18]} 70. Kd2 {[%emt 0:00:06]} Ke6 {[%emt 0:00:02]} 71. Kc3 {[%emt 0:00:24]} Kd5 {[%emt 0:00:20]} 72. Kb3 {[%emt 0:00:41]} Bb6 {[%emt 0:01:08]} 73. Bf2 {[%emt 0:00:24]} Kxc6 {[%emt 0:00:29]} 74. Kc4 {[%emt 0:00:16]} Bd8 {[%emt 0:00:28]} 75. Be1 {[%emt 0:00:28]} Be7 {[%emt 0:00:50]} 76. Bg3 {[%emt 0:00:57]} Bc5 {[%emt 0:00:41]} 77. Bf2 {[%emt 0:00:05]} Bb4 {[%emt 0:00:13]} 78. Bg3 {[%emt 0:00:29]} Kd6 {[%emt 0:00:33]} 79. Bh4 {[%emt 0:00:33]} Ke6 {[%emt 0:00:17]} 80. Bf2 {[%emt 0:00:27]} Kf5 {[%emt 0:00:47]} 81. Kd5 {[%emt 0:00:18]} Bd2 {[%emt 0:00:42]} 82. Bg1 {[%emt 0:01:05]} Be1 {[%emt 0:00:25]} 83. Kc4 {[%emt 0:01:22]} f2 {[%emt 0:00:16]} 84. Bxf2 {[%emt 0:00:05]} Bxf2 {[%emt 0:00:04] Kd4} 0-1

[Event "46th GRE-chT Premier 2018"]
[Site "Rio Achaia"]
[Date "2018.07.12"]
[Round "4"]
[White "Zacharia, Aikaterini-Eirini"]
[Black "Koutsidi, Amalia"]
[Result "0-1"]
[ECO "B94"]
[WhiteElo "1234"]
[BlackElo "1911"]
[Annotator "NA"]
[PlyCount "48"]
[EventDate "2018.07.10"]
[EventType "team-tourn"]
[EventCountry "GRE"]
[SourceTitle "playchess.com"]
[Source "ChessBase"]
[SourceQuality "1"]
[TimeControl "40/5400+30:1800+30"]

1. e4 {[%emt 0:00:00]} c5 {[%emt 0:02:40]} 2. Nf3 {[%emt 0:00:00]} d6 {[%emt 0:00:21]} 3. d4 {[%emt 0:00:00]} cxd4 {[%emt 0:00:04]} 4. Nxd4 {[%emt 0:00:00]} Nf6 {[%emt 0:00:04]} 5. Nc3 {[%emt 0:00:01]} a6 {[%emt 0:00:08]} 6. Bg5 {[%emt 0:00:15]} Nbd7 {[%emt 0:00:12]} 7. Qe2 {[%emt 0:02:45]} Qc7 {[%emt 0:05:21]} 8. O-O-O {[%emt 0:02:15]} e6 {[%emt 0:06:49]} 9. f4 {[%emt 0:03:42]} Be7 {[%emt 0:04:43]} 10. Qf3 {[%emt 0:07:44]} b5 {[%emt 0:03:34]} 11. a3 {[%emt 0:00:19]} Bb7 {[%emt 0:01:11]} 12. Rg1 {[%emt 0:10:52]} Rc8 {[%emt 0:05:24]} 13. Bxf6 {[%emt 0:11:27]} Nxf6 {[%emt 0:02:10]} 14. Qd3 {[%emt 0:08:21]} Qc5 15. Nf3 b4 {[%emt 0:14:02]} 16. axb4 {[%emt 0:04:26]} Qxb4 {[%emt 0:00:14]} 17. Re1 {[%emt 0:09:17]} O-O {[%emt 0:04:18]} 18. g4 {[%emt 0:04:07]} Nd7 {[%emt 0:10:07]} 19. f5 {[%emt 0:09:20]} Bf6 {[%emt 0:05:07]} 20. Re3 {[%emt 0:08:23]} Nc5 {[%emt 0:02:48]} 21. Qxd6 {[%emt 0:04:11]} Nb3+ {[%emt 0:02:29]} 22. cxb3 {[%emt 0:04:27]} Qxd6 {[%emt 0:00:09]} 23. g5 {[%emt 0:01:06]} Bxc3 {[%emt 0:00:47]} 24. bxc3 {[%emt 0:00:48]} Qf4 {[%emt 0:01:20]} 0-1

[Event "46th GRE-chT Premier 2018"]
[Site "Rio Achaia"]
[Date "2018.07.12"]
[Round "4"]
[White "Tsavdaras, Dimitrios"]
[Black "Yannopapas, Leontios"]
[Result "1/2-1/2"]
[ECO "B36"]
[WhiteElo "1214"]
[BlackElo "1366"]
[Annotator "NA"]
[PlyCount "61"]
[EventDate "2018.07.10"]
[EventType "team-tourn"]
[EventCountry "GRE"]
[SourceTitle "playchess.com"]
[Source "ChessBase"]
[SourceQuality "1"]
[TimeControl "40/5400+30:1800+30"]

1. e4 {[%emt 0:00:00]} c5 {[%emt 0:00:00]} 2. Nf3 {[%emt 0:00:01]} g6 {[%emt 0:00:00]} 3. c4 {[%emt 0:01:08]} Nc6 {[%emt 0:00:10]} 4. d4 cxd4 {[%emt 0:00:07]} 5. Nxd4 {[%emt 0:00:46]} Nf6 {[%emt 0:00:13]} 6. Nc3 {[%emt 0:01:43]} Nxd4 {[%emt 0:00:48]} 7. Qxd4 {[%emt 0:00:38]} d6 {[%emt 0:00:17]} 8. Be2 {[%emt 0:01:31]} Bg7 {[%emt 0:00:50]} 9. b3 {[%emt 0:02:33]} O-O {[%emt 0:01:44]} 10. Bb2 {[%emt 0:04:38]} Qa5 {[%emt 0:06:09]} 11. O-O {[%emt 0:06:21]} Nxe4 {[%emt 0:12:07]} 12. Qxe4 {[%emt 0:00:14]} Bxc3 {[%emt 0:01:25]} 13. Bxc3 {[%emt 0:00:28]} Qxc3 {[%emt 0:00:09]} 14. Qxe7 {[%emt 0:02:05]} Qe5 {[%emt 0:06:44]} 15. Qxe5 {[%emt 0:00:49]} dxe5 {[%emt 0:00:21]} 16. Rad1 {[%emt 0:09:22]} Bf5 {[%emt 0:09:11]} 17. Rfe1 {[%emt 0:10:57]} Rad8 {[%emt 0:01:47]} 18. Rd5 {[%emt 0:15:32]} Rxd5 {[%emt 0:06:43]} 19. cxd5 {[%emt 0:00:27]} Rd8 {[%emt 0:00:35]} 20. Bf3 {[%emt 0:05:43]} e4 {[%emt 0:03:39]} 21. Bxe4 {[%emt 0:01:21]} Bxe4 {[%emt 0:00:13]} 22. Rxe4 {[%emt 0:00:12]} Rxd5 {[%emt 0:00:14]} 23. g4 {[%emt 0:01:21]} Kf8 {[%emt 0:01:45]} 24. Kg2 {[%emt 0:00:55]} Rd2 {[%emt 0:01:12]} 25. Ra4 {[%emt 0:02:27]} a6 {[%emt 0:00:23]} 26. Rb4 {[%emt 0:01:24]} Rxa2 {[%emt 0:04:34]} 27. Rxb7 {[%emt 0:00:14]} Rb2 {[%emt 0:00:29]} 28. Rb6 {[%emt 0:03:59]} a5 {[%emt 0:02:27]} 29. Ra6 {[%emt 0:01:34]} Rxb3 {[%emt 0:01:00]} 30. Rxa5 {[%emt 0:01:31]} Kg7 {[%emt 0:00:23]} 31. g5 {[%emt 0:01:37]} 1/2-1/2